bitfinex-derivatives/quotes_ETHF0:USTF0_20251006
["timestamp","ask_amount","ask_price","bid_price","bid_amount"]
[1759761073182,0.00177325,4668.9,4668.7,1.0044]
[1759761073387,0.00177325,4668.9,4668.7,0.38538]
[1759761073686,0.00177325,4668.9,4668.8,1.0044]
[1759761074884,0.00177325,4668.9,4668.8,41.8044]
[1759761076181,0.00177325,4668.9,4668.2,1.0044]
[1759761076182,1.01077325,4668.9,4668.2,1.0044]
[1759761076486,0.217,4668.8,4668.2,1.0044]
[1759761076783,1.226,4668.8,4668.3,40.8]
[1759761076979,1.3827,4668.5,4668.3,40.8]
[1759761077180,1.1827,4668.5,4667.8,0.00159139]
[1759761077881,0.3808,4668.0,4667.8,0.00159139]
[1759761078082,0.217,4667.9,4667.8,0.00159139]
[1759761079184,0.9567,4668.0,4667.8,0.97789139]
[1759761079386,4.1645,4668.6,4667.8,0.97789139]
[1759761079581,0.43446182,4668.5,4668.0,0.3942]
[1759761079888,0.43446182,4668.4,4668.1,0.9763]
[1759761080090,1.1737,4668.5,4668.1,0.9763]
[1759761080587,0.9567,4668.4,4668.0,0.3942]
[1759761080784,0.9567,4668.4,4668.1,0.9763]
[1759761080985,0.9567,4669.0,4668.1,0.9763]
[1759761081188,3.2078,4670.3,4668.7,0.9763]
[1759761081492,0.9567,4670.1,4669.4,0.9763]
[1759761082380,0.95934284,4670.1,4669.5,0.38532]
[1759761082586,0.95934284,4670.1,4669.4,0.9763]
[1759761082781,0.95934284,4670.1,4669.4,1.36163]
[1759761082987,0.217,4670.0,4669.4,1.36163]
[1759761083182,0.00264284,4670.1,4669.6,0.9763]
[1759761083483,0.00264284,4670.1,4670.0,4.1841]
[1759761083991,0.95934284,4670.1,4670.0,3.2078]
[1759761084193,0.00264284,4670.1,4670.0,4.1841]
[1759761084596,0.95934284,4670.1,4670.0,44.9841]
[1759761084787,0.95934284,4670.1,4670.0,44.0078]
[1759761084989,0.95934284,4670.1,4670.0,40.8]
[1759761085188,0.9567,4669.9,4669.1,3.2078]
[1759761085387,0.9567,4669.7,4669.1,3.59315]
[1759761085593,0.217,4669.8,4669.2,40.8]
[1759761085794,0.217,4669.8,4669.2,41.18534]
[1759761085990,0.217,4669.8,4669.2,40.8]
[1759761086191,0.217,4669.8,4668.8,0.38538]
[1759761086192,0.9567,4669.7,4668.8,0.38538]
[1759761086587,0.9567,4669.7,4668.6,0.9763]
[1759761086798,0.9567,4669.7,4669.0,0.38536]
[1759761086999,0.9567,4669.7,4669.1,0.9763]
[1759761087395,0.00264284,4670.1,4669.6,0.9763]
[1759761087596,0.00264284,4670.1,4670.0,1.3705]
[1759761087793,0.00264284,4670.1,4670.0,0.9763]
[1759761088594,1.3375,4670.0,4669.2,0.9763]
[1759761088795,0.9567,4669.8,4669.1,3.2078]
[1759761089000,0.9567,4669.6,4669.0,0.38536]
[1759761089195,1.39084126,4669.5,4669.0,0.38536]
[1759761089400,0.9567,4669.5,4669.0,0.38536]
[1759761089600,0.9567,4669.6,4669.0,0.9763]
[1759761089892,0.43440649,4669.5,4669.1,0.38535]
[1759761090088,0.9567,4669.3,4668.9,41.18537]
[1759761090298,0.9567,4669.3,4669.0,0.9763]
[1759761090501,0.217,4669.4,4669.3,0.9763]
[1759761090702,0.9567,4669.9,4669.3,0.9763]
[1759761090898,1.39113236,4669.8,4669.1,0.9763]
[1759761091204,0.9567,4669.6,4668.7,0.38538]
[1759761091408,0.9567,4669.6,4668.6,0.9763]
[1759761091409,0.65164314,4669.5,4669.1,0.38535]
[1759761091706,0.217,4669.5,4669.3,0.9763]
[1759761091897,0.217,4669.5,4669.2,0.9763]
[1759761092100,0.217,4669.5,4669.1,40.8]
[1759761092497,0.217,4669.5,4669.1,41.18535]
[1759761092908,0.217,4669.5,4669.1,40.8]
[1759761093102,0.43498444,4669.4,4669.1,40.8]
[1759761093297,0.217,4669.5,4669.1,40.8]
[1759761093497,0.43498451,4669.4,4669.2,0.9763]
[1759761093706,0.217,4669.5,4669.2,0.9763]
[1759761093907,0.217,4669.5,4669.1,40.8]
[1759761093908,0.43498442,4669.4,4669.1,40.8]
[1759761094207,0.43520147,4669.3,4669.2,0.9763]
[1759761094404,0.217,4669.5,4669.2,0.9763]
[1759761094710,0.43520034,4669.4,4669.1,40.8]
[1759761094903,0.43520034,4669.4,4669.2,0.9763]
[1759761095204,0.9567,4669.3,4669.2,0.9763]
[1759761095411,0.43520034,4669.3,4669.2,0.9763]
[1759761095605,0.43520034,4669.3,4669.1,40.8]
[1759761095801,0.9534,4669.4,4669.2,0.9354]
[1759761096003,0.43689368,4669.3,4669.1,40.8]
[1759761096307,0.43689368,4669.2,4669.1,0.9354]
[1759761096509,0.43689368,4669.4,4669.1,0.9354]
[1759761096703,0.9534,4669.3,4669.0,0.9354]
[1759761096907,0.43689368,4669.2,4668.9,0.9354]
[1759761097210,0.43689368,4669.1,4669.0,0.9354]
[1759761097604,0.43689368,4669.4,4669.1,0.9354]
[1759761097804,0.43689368,4669.3,4669.2,0.9354]
[1759761098011,0.217,4669.4,4669.2,0.9354]
[1759761098205,0.43689368,4669.3,4669.2,0.9354]
[1759761098712,0.43689368,4669.4,4669.2,0.9354]
[1759761098907,0.43689368,4669.3,4669.2,0.9354]
[1759761099214,0.9534,4669.3,4669.0,0.38536]
[1759761099401,0.9534,4669.1,4668.9,0.9354]
[1759761099605,0.43689368,4669.0,4668.9,0.9354]
[1759761100003,0.9534,4669.1,4668.9,0.9354]
[1759761100211,0.65389368,4669.0,4668.9,0.9354]
[1759761100510,0.9534,4668.9,4668.0,3.602]
[1759761100705,3.2078,4668.7,4668.0,4.5374]
[1759761100907,1.39029368,4668.6,4668.0,4.1432]
[1759761101203,3.2078,4668.7,4668.0,3.2078]
[1759761101204,0.9534,4668.4,4668.0,3.2078]
[1759761101511,0.43689368,4668.3,4668.1,0.9354]
[1759761101909,0.43689368,4668.3,4668.0,3.2078]
[1759761102213,0.43689368,4668.3,4668.1,0.9354]
[1759761102214,0.9534,4668.2,4668.1,0.9354]
[1759761102413,0.9534,4668.1,4668.0,3.2078]
[1759761102613,1.39029368,4668.1,4668.0,4.1432]
[1759761103018,0.9534,4667.9,4667.8,0.00159139]
[1759761103310,1.60729368,4667.9,4667.8,0.00159139]
[1759761103507,0.65389368,4667.9,4667.8,0.93699139]
[1759761103709,0.3908,4670.5,4667.8,5.00159139]
[1759761103710,4.1612,4669.0,4667.8,5.00159139]
[1759761104011,2.24911414,4670.0,4668.8,0.9354]
[1759761104012,0.43825079,4668.9,4668.8,0.9354]
[1759761104312,0.43825079,4668.9,4668.8,44.9432]
[1759761104702,0.154,4669.5,4668.9,0.9354]
[1759761104909,0.43816054,4669.4,4669.3,4.1432]
[1759761105108,0.217,4669.9,4669.3,4.1432]
[1759761105312,0.43809805,4669.8,4669.6,0.9354]
[1759761105513,0.43809805,4669.7,4669.6,0.9354]
[1759761105713,0.43809805,4669.8,4669.6,0.9354]
[1759761105907,1.39149805,4669.8,4669.3,3.2078]
[1759761106109,0.43809805,4669.7,4669.6,0.9354]
[1759761106713,1.39149805,4669.7,4669.6,0.9354]
[1759761107214,1.60849805,4669.7,4669.6,0.9354]
[1759761107712,0.65509805,4669.7,4669.6,0.9354]
[1759761108816,0.43809805,4669.7,4669.6,1.32071]
[1759761109114,0.43809805,4669.7,4669.6,0.9354]
[1759761109314,1.40199805,4669.7,4669.6,0.9354]
[1759761109713,0.43809805,4669.7,4669.3,3.2078]
[1759761109910,0.43809805,4669.6,4669.3,3.2078]
[1759761110110,1.40199805,4669.5,4669.3,4.1151]
[1759761110310,0.43809805,4669.4,4669.3,0.9073]
[1759761110512,0.43809805,4669.4,4668.7,4.1151]
[1759761110711,0.43809805,4669.4,4668.7,3.2078]
[1759761110912,0.9639,4668.9,4668.7,3.2078]
[1759761111216,1.61899805,4668.8,4668.1,41.18543]
[1759761111517,1.61899805,4668.8,4668.6,3.2078]
[1759761111518,1.40199805,4668.7,4668.6,3.2078]
[1759761111712,0.9639,4668.6,4668.3,0.9073]
[1759761111910,0.9639,4668.4,4668.3,1.29272]
[1759761112110,1.40199805,4668.4,4668.3,1.29272]
[1759761112310,0.43809805,4668.4,4668.3,1.29272]
[1759761112513,0.43809805,4668.4,4668.1,40.8]
[1759761112709,0.43809805,4668.3,4668.2,0.9073]
[1759761113117,0.217,4668.8,4668.2,1.29272]
[1759761113415,0.9639,4668.6,4668.3,0.9073]
[1759761113617,0.43863091,4668.5,4668.4,0.9073]
[1759761114120,3.64643091,4668.5,4668.4,0.9073]
[1759761114307,0.9639,4668.4,4667.1,0.38551]
[1759761114508,0.9639,4667.9,4666.9,3.2078]
[1759761114710,0.65563091,4667.8,4666.9,3.2078]
[1759761115009,0.9639,4667.4,4666.9,3.2078]
[1759761115219,0.43863091,4667.3,4667.0,0.9073]
[1759761115513,0.65563091,4667.2,4667.1,0.9073]
[1759761116112,3.2078,4668.0,4667.1,1.29281]
[1759761116314,0.65528534,4667.9,4667.1,1.29281]
[1759761116515,0.43828534,4667.8,4667.1,1.29281]
[1759761116712,0.43828534,4667.8,4667.2,0.38551]
[1759761116910,0.43828534,4667.8,4667.5,0.38548]
[1759761117113,0.65528534,4667.7,4667.6,0.9073]
[1759761117517,0.9639,4668.7,4667.7,0.9073]
[1759761117718,0.65508081,4668.6,4668.0,0.38544]
[1759761117911,0.65508081,4668.6,4667.8,3.2078]
[1759761117912,0.9639,4668.4,4667.8,3.2078]
[1759761118112,0.43808081,4668.3,4667.9,40.8]
[1759761118312,1.1809,4668.6,4668.0,0.9073]
[1759761118518,0.43813423,4668.5,4667.9,41.7073]
[1759761118718,1.40203423,4668.4,4667.9,40.8]
[1759761118922,0.43813423,4668.3,4667.9,40.8]
[1759761119124,0.43813423,4668.3,4668.2,0.9073]
[1759761119925,0.217,4668.6,4668.2,0.9073]
[1759761120125,0.43811809,4668.5,4668.0,0.9073]
[1759761120420,0.217,4668.6,4668.5,1.6741]
[1759761120621,0.217,4668.9,4668.8,0.38538]
[1759761120821,0.217,4668.9,4668.8,1.29268]
[1759761121023,4.1717,4669.8,4669.1,0.9073]
[1759761121214,0.65501509,4669.7,4669.3,0.38533]
[1759761121417,0.43801509,4669.6,4669.5,0.9073]
[1759761122125,1.40191509,4669.6,4669.0,0.9073]
[1759761122425,0.9639,4669.2,4668.5,0.9073]
[1759761122626,0.65501509,4669.1,4668.6,0.9073]
[1759761122926,0.43801509,4669.0,4668.7,0.9073]
[1759761123126,1.1809,4669.1,4668.7,0.9073]
[1759761123327,1.4019274,4669.0,4668.8,0.9073]
[1759761123527,0.9639,4669.0,4668.8,0.9073]
[1759761123825,0.9639,4669.0,4668.0,0.3814]
[1759761123826,1.3348,4669.0,4668.2,0.9073]
[1759761124020,0.43804883,4668.9,4668.2,1.29273]
[1759761124224,0.9639,4669.0,4668.6,0.38539]
[1759761124422,0.9639,4669.0,4668.1,0.9636]
[1759761124423,0.43804524,4668.9,4668.4,0.38541]
[1759761124723,0.43789567,4668.8,4668.0,1.2887]
[1759761124928,0.3709,4669.0,4668.0,1.2887]
[1759761125226,0.3709,4669.0,4668.0,0.9073]
[1759761125227,0.43791024,4668.9,4668.0,0.9073]
[1759761125522,3.12631183,4669.0,4667.5,0.9073]
[1759761125523,0.3709,4668.0,4667.5,0.9073]
[1759761125724,0.9639,4667.8,4667.1,0.38552]
[1759761125923,0.9639,4667.6,4667.3,0.9073]
[1759761126119,0.3709,4667.5,4667.0,0.00199641]
[1759761126425,0.9639,4666.9,4665.6,1.14470239]
[1759761126632,0.9639,4666.2,4665.4,1.14470239]
[1759761126826,0.217,4666.1,4665.3,1.29297]
[1759761127029,0.9639,4666.7,4665.5,3.5892]
[1759761127223,2.74850167,4666.8,4665.5,3.5892]
[1759761127224,0.217,4666.8,4666.6,1.29286]
[1759761127527,0.00221785,4666.7,4666.6,5.9073]
[1759761127919,0.00221785,4666.7,4666.6,0.9073]
[1759761128430,0.00221785,4666.7,4666.6,4.1151]
[1759761128729,0.00221785,4666.7,4666.6,9.1151]
[1759761129731,0.00221785,4666.7,4666.6,49.9151]
[1759761130527,3.2078,4667.7,4666.6,49.9151]
[1759761130734,0.3709,4668.5,4666.6,49.9151]
[1759761130735,0.09,4668.0,4667.5,0.3814]
[1759761130928,0.43737238,4667.9,4667.8,0.9073]
[1759761131329,3.2078,4668.2,4667.6,0.9073]
[1759761131531,0.9639,4668.0,4667.6,1.29277]
[1759761131729,0.9639,4668.0,4667.7,0.9073]
[1759761132034,0.9639,4668.0,4667.6,0.38547]
[1759761132035,0.217,4668.1,4668.0,1.2887]
[1759761132828,0.00219456,4668.2,4668.1,1.29274]
[1759761133024,0.00219456,4668.2,4668.1,4.50054]
[1759761133223,0.217,4669.0,4668.1,4.50054]
[1759761133224,0.9639,4669.8,4668.6,0.9073]
[1759761133429,0.9639,4669.8,4669.2,0.9073]
[1759761133430,0.43716942,4669.7,4669.2,0.9073]
[1759761133724,0.43716942,4669.6,4669.2,0.9073]
[1759761134032,0.9639,4669.4,4669.1,3.2078]
[1759761134234,0.00186005,4669.4,4669.1,0.00151006]
[1759761134428,1.40108338,4669.3,4669.1,0.00151006]
[1759761134634,1.61808338,4669.2,4669.1,0.00151006]
[1759761134830,3.44875965,4669.2,4668.0,3.2078]
[1759761135133,3.5787,4668.5,4667.5,44.0078]
[1759761135331,1.61808338,4668.4,4667.5,44.0078]
[1759761135529,1.1809,4668.4,4667.6,0.9073]
[1759761135929,0.9639,4668.2,4667.6,0.00152796]
[1759761136429,0.43744611,4668.1,4667.6,0.00152796]
[1759761136634,0.3709,4668.0,4667.6,0.00152796]
[1759761136933,0.9639,4667.8,4667.6,0.00152796]
[1759761137231,0.9639,4668.4,4667.7,0.9073]
[1759761137432,0.43751679,4668.3,4667.9,0.38545]
[1759761137636,3.5787,4669.0,4668.1,0.9073]
[1759761137637,0.9639,4668.9,4668.1,0.9073]
[1759761137835,0.9639,4668.9,4668.6,0.9073]
[1759761137836,0.65446926,4668.8,4668.6,0.9073]
[1759761138033,0.43745702,4668.7,4668.6,1.271]
[1759761138529,1.39115702,4668.7,4668.5,3.2078]
[1759761138731,0.9537,4668.8,4668.0,4.4748]
[1759761138932,0.217,4668.9,4668.8,1.27098]
[1759761139126,0.00186005,4669.4,4668.8,0.38538]
[1759761139330,0.65463281,4669.3,4669.2,0.8856]
[1759761140731,0.217,4669.3,4669.2,0.8856]
[1759761144032,0.00186005,4669.4,4669.2,0.8856]
[1759761144329,0.00186005,4669.4,4669.2,1.27094]
[1759761144529,0.00186005,4669.4,4669.3,41.6856]
[1759761147034,0.00186005,4669.4,4669.3,46.6856]
[1759761147640,0.00186005,4669.4,4669.3,46.9026]
[1759761148727,0.3733,4671.5,4670.7,0.38521]
[1759761148929,1.4638688,4671.4,4670.8,0.8856]
[1759761149138,3.2078,4671.7,4671.2,0.8856]
[1759761149335,1.39060062,4671.6,4671.2,0.8856]
[1759761149639,0.9537,4671.4,4670.7,0.8856]
[1759761149837,0.9537,4670.9,4670.7,0.00213816]
[1759761150033,0.65392724,4670.8,4669.4,3.2078]
[1759761150235,0.9537,4670.2,4669.4,3.2078]
[1759761150537,1.327,4670.0,4668.9,3.2078]
[1759761150736,0.9537,4669.9,4669.0,40.8]
[1759761150935,0.3733,4670.0,4669.0,40.80163691]
[1759761151232,0.3733,4669.5,4669.0,0.00163691]
[1759761151440,0.217,4669.4,4669.0,0.00163691]
[1759761151734,0.217,4669.4,4669.0,40.80163691]
[1759761151935,0.217,4669.4,4669.0,41.68723691]
[1759761152136,0.217,4669.4,4669.0,40.80163691]
[1759761152338,1.5258641,4671.3,4669.0,40.80163691]
[1759761152339,3.2078,4670.3,4669.5,0.3824]
[1759761152533,0.9537,4669.9,4669.2,1.27094]
[1759761152730,0.65400542,4670.2,4669.0,41.40103691]
[1759761152731,0.9537,4670.1,4669.1,0.8856]
[1759761152934,0.9537,4670.1,4669.3,0.38533]
[1759761153134,0.9537,4670.1,4669.9,0.8856]
[1759761153335,0.217,4670.2,4669.9,0.8856]
[1759761153539,0.217,4670.2,4669.5,0.3824]
[1759761153540,0.217,4670.2,4669.6,0.8856]
[1759761153837,0.217,4670.2,4669.1,0.8856]
[1759761153838,0.9537,4669.9,4669.1,0.8856]
[1759761154034,0.3733,4670.0,4669.0,0.00163691]
[1759761154233,0.3733,4669.5,4669.0,0.00163691]
[1759761154439,0.9537,4669.2,4669.0,0.00163691]
[1759761154831,0.43729417,4669.1,4669.0,0.00163691]
[1759761155033,3.2078,4669.3,4669.0,0.88723691]
[1759761155237,0.9537,4669.2,4669.1,0.8856]
[1759761155432,0.9537,4669.2,4669.0,0.00163691]
[1759761155639,0.9376,4669.7,4669.1,0.872]
[1759761155840,0.9376,4670.7,4669.6,0.872]
[1759761156035,0.9376,4670.4,4669.9,3.2078]
[1759761156237,2.81876495,4670.9,4670.1,0.872]
[1759761156435,0.217,4670.6,4670.0,0.3507]
[1759761156637,1.1546,4670.6,4670.0,1.2227]
[1759761156838,0.217,4670.6,4670.0,0.3507]
[1759761157342,1.1546,4670.6,4670.2,0.872]
[1759761157544,0.217,4670.6,4670.4,0.872]
[1759761157743,0.217,4670.6,4670.5,1.2227]
[1759761158042,0.217,4670.9,4670.6,0.872]
[1759761158239,0.217,4671.2,4670.8,0.872]
[1759761158443,0.217,4671.2,4671.1,0.872]
[1759761158634,0.0020604,4671.4,4671.1,0.872]
[1759761158839,0.0020604,4671.4,4671.0,3.9437]
[1759761159045,0.0020604,4671.4,4671.1,0.872]
[1759761159242,0.359,4672.5,4671.1,0.872]
[1759761159243,3.2078,4672.8,4672.0,0.38511]
[1759761159443,3.2078,4672.8,4671.8,0.872]
[1759761159444,0.9376,4672.6,4671.9,0.872]
[1759761159640,0.43722535,4672.5,4671.9,0.872]
[1759761159841,0.43722535,4672.4,4671.8,45.26492]
[1759761160142,0.022,4672.9,4671.9,0.872]
[1759761160439,0.9376,4672.8,4672.6,0.872]
[1759761160640,0.9376,4672.8,4672.6,0.00217585]
[1759761160842,0.02441787,4672.9,4672.6,0.00217585]
[1759761161043,0.9376,4672.7,4672.6,0.00217585]
[1759761161644,6.37438573,4672.7,4672.6,0.00217585]
[1759761162040,1.37438573,4672.7,4672.6,0.00217585]
[1759761162240,0.217,4672.7,4672.6,0.87417585]
[1759761162446,0.217,4672.8,4672.7,0.872]
[1759761162642,0.65358809,4672.8,4672.7,0.872]
[1759761163042,0.43658809,4672.8,4672.6,0.00217585]
[1759761163244,0.02441787,4672.9,4672.8,0.38505]
[1759761163545,4.1454,4674.3,4673.7,0.38497]
[1759761163748,3.2078,4674.3,4673.5,3.94349]
[1759761163948,3.2078,4674.3,4673.9,0.872]
[1759761164146,3.2078,4674.3,4673.8,0.38496]
[1759761164348,3.2078,4674.3,4673.5,3.5585]
[1759761164349,3.2078,4675.1,4674.1,3.2078]
[1759761164542,1.67685363,4676.9,4675.0,3.2078]
[1759761164845,1.2966,4676.5,4676.4,3.2078]
[1759761165042,0.359,4676.0,4675.7,3.2078]
[1759761165238,0.359,4675.5,4675.1,3.2078]
[1759761165446,0.9376,4675.4,4675.1,3.20980948]
[1759761165643,0.00231556,4675.5,4675.1,3.20980948]
[1759761165842,0.359,4676.5,4675.2,5.0]
[1759761166038,1.2966,4676.5,4676.4,3.2078]
[1759761166242,0.359,4677.5,4676.4,3.2078]
[1759761166447,0.359,4677.5,4677.2,3.2078]
[1759761166643,0.9376,4677.4,4677.2,3.2078]
[1759761166848,0.9376,4677.3,4677.2,3.2078]
[1759761167245,0.00232352,4677.4,4677.2,8.2078]
[1759761167447,0.00232352,4677.4,4677.3,5.0]
[1759761167639,0.9376,4677.3,4677.2,3.2078]
[1759761167847,0.9376,4677.3,4677.2,3.12672245]
[1759761168045,0.3861,4677.0,4676.7,3.2078]
[1759761168249,0.9711,4676.9,4676.7,3.2078]
[1759761168443,0.3861,4677.0,4676.7,3.2078]
[1759761168749,0.9711,4676.9,4676.7,3.2078]
[1759761168952,0.3861,4677.0,4676.7,3.2078]
[1759761169250,0.9711,4676.9,4676.7,3.2078]
[1759761169445,0.3861,4677.0,4676.7,3.2078]
[1759761169750,0.9711,4676.9,4676.7,3.2078]
[1759761170049,0.3861,4677.0,4676.7,3.2078]
[1759761170238,0.9711,4676.9,4676.7,3.2078]
[1759761171138,0.3861,4677.0,4676.7,3.2078]
[1759761171347,0.9711,4676.9,4676.7,3.2078]
[1759761171547,0.3861,4677.0,4676.7,3.2078]
[1759761171951,0.9711,4676.9,4676.7,3.2078]
[1759761172349,0.3861,4677.0,4676.7,3.2078]
[1759761173146,0.9711,4676.9,4676.7,3.2078]
[1759761173352,1.1871,4676.8,4676.7,3.09387176]
[1759761173859,0.9711,4675.9,4675.6,3.2078]
[1759761174046,0.9711,4675.7,4675.6,3.2078]
[1759761174249,0.216,4675.8,4675.0,3.2078]
[1759761174250,0.9711,4675.4,4675.0,3.2078]
[1759761175050,1.3572,4674.5,4674.4,3.2078]
[1759761175750,0.9711,4673.9,4673.5,3.2078]
[1759761176052,0.00217348,4673.9,4673.6,0.38498]
[1759761176246,0.00217348,4673.9,4673.7,0.60097]
[1759761176749,0.00217348,4673.9,4673.8,5.0]
[1759761177451,0.00217348,4673.9,4673.5,3.21027319]
[1759761177643,0.9711,4673.8,4673.5,0.00247319]
[1759761177846,0.9711,4673.8,4673.6,3.2078]
[1759761178056,0.00217348,4673.9,4673.8,0.38497]
[1759761178250,0.00217348,4673.9,4673.6,3.2078]
[1759761178451,0.9711,4673.8,4673.6,3.2078]
[1759761178653,0.00217348,4673.9,4673.6,3.2078]
[1759761178955,0.9711,4673.8,4673.6,3.2078]
[1759761179144,0.9711,4673.8,4673.5,0.00247319]
[1759761179850,0.00217348,4673.9,4673.6,0.38498]
[1759761180052,0.97327348,4673.9,4673.7,0.216]
[1759761180254,0.00217348,4673.9,4673.7,0.38497]
[1759761180453,0.9711,4674.9,4674.6,0.3849]
[1759761180651,3.5939,4675.5,4674.6,0.3849]
[1759761180652,0.9711,4675.4,4674.7,0.216]
[1759761180857,0.3861,4675.5,4675.1,3.59266]
[1759761181047,0.3861,4675.5,4675.1,3.2078]
[1759761181048,0.9711,4675.4,4675.1,3.2078]
[1759761181356,0.9711,4675.4,4675.2,0.38484]
[1759761181554,0.9711,4676.4,4675.2,5.0]
[1759761181751,0.9711,4675.4,4675.3,3.2078]
[1759761181954,0.3861,4676.0,4675.3,3.4238]
[1759761182252,0.0023203,4676.4,4676.2,0.38476]
[1759761182549,0.0023203,4676.4,4676.0,0.216]
[1759761182749,0.9734203,4676.4,4676.0,0.216]
[1759761182950,0.9734203,4676.4,4675.8,3.2078]
[1759761182951,0.0023203,4676.4,4675.8,3.2078]
[1759761183152,0.3861,4676.0,4675.8,3.2078]
[1759761183457,0.3861,4675.5,4675.2,3.2078]
[1759761183862,0.3861,4675.5,4674.7,3.4238]
[1759761184054,0.9711,4675.4,4674.7,3.4238]
[1759761184358,0.9711,4675.4,4674.7,3.2078]
[1759761184953,0.9711,4675.4,4674.9,0.38487]
[1759761185152,0.9711,4675.4,4675.3,3.2078]
[1759761185452,3.5939,4676.0,4675.5,0.38482]
[1759761185653,0.3861,4676.0,4675.9,3.2078]
[1759761185852,0.9734203,4676.4,4676.0,0.38478]
[1759761185853,0.9711,4676.3,4676.0,0.38478]
[1759761186059,0.0023203,4676.4,4676.1,0.38477]
[1759761186353,0.0023203,4676.4,4675.9,3.2078]
[1759761186354,0.9734203,4676.4,4675.9,3.2078]
[1759761186558,0.9734203,4676.4,4676.2,0.38477]
[1759761186559,0.0023203,4676.4,4676.2,0.38477]
[1759761186757,0.0023203,4676.4,4676.2,0.60077]
[1759761187657,0.0023203,4676.4,4676.2,5.60077]
[1759761188452,0.9711,4677.4,4677.1,0.38469]
[1759761188657,0.9711,4677.4,4677.2,3.59248]
[1759761189059,0.3861,4677.5,4677.3,41.18467]
[1759761189465,1.35880746,4677.5,4677.3,41.18647555]
[1759761189963,0.00160746,4677.5,4677.3,41.18647555]
[1759761190165,0.00160746,4677.5,4677.4,0.216]
[1759761190666,0.9711,4677.4,4677.3,0.00180555]
[1759761190864,0.9711,4677.4,4677.3,40.80180555]
[1759761191065,0.38770746,4677.5,4677.3,40.80180555]
[1759761191066,0.00160746,4677.5,4677.3,46.18648555]
[1759761191361,0.9711,4677.4,4677.3,40.80180555]
[1759761191764,0.9711,4677.4,4677.3,41.01780555]
[1759761192660,0.9711,4677.4,4677.3,0.00180555]
[1759761193761,0.3861,4677.0,4676.7,3.2078]
[1759761193955,0.3861,4676.5,4676.0,3.2078]
[1759761194159,0.9711,4676.3,4676.0,3.2078]
[1759761194362,0.3861,4676.5,4676.0,3.2078]
[1759761194562,0.9711,4676.4,4676.0,3.2078]
[1759761194869,1.3572,4676.5,4676.3,0.38476]
[1759761195066,0.3861,4677.0,4676.0,3.20964581]
[1759761195266,0.3861,4676.5,4676.0,3.20964581]
[1759761195469,0.43608053,4676.4,4676.0,3.20964581]
[1759761195775,0.43608053,4676.4,4676.2,0.38476]
[1759761196064,0.3861,4677.0,4676.7,0.38473]
[1759761196270,0.9711,4676.8,4676.5,3.80854]
[1759761196572,0.9711,4676.9,4676.8,0.38471]
[1759761196766,1.40720745,4676.9,4676.6,0.38474]
[1759761196971,1.40720745,4676.9,4676.5,44.2238]
[1759761196972,0.3861,4677.0,4676.8,0.38472]
[1759761197167,0.9711,4677.4,4677.2,0.38468]
[1759761197472,1.40714241,4677.3,4677.2,0.38468]
[1759761197970,0.38770746,4677.5,4677.4,0.38467]
[1759761198269,1.73114648,4677.5,4677.4,0.38467]
[1759761198467,1.73114648,4677.5,4677.2,3.2078]
[1759761198468,0.9074,4677.4,4677.2,3.2078]
[1759761198664,0.38770746,4677.5,4677.2,3.2078]
[1759761198863,0.38770746,4677.5,4677.2,3.59248]
[1759761198864,0.9074,4677.3,4677.2,3.59248]
[1759761199265,0.9074,4677.3,4677.2,3.2078]
[1759761200466,0.9074,4676.9,4676.5,44.0078]
[1759761200663,0.3932,4677.0,4676.5,44.0078]
[1759761200863,0.9074,4676.8,4676.5,3.2078]
[1759761201065,0.9074,4676.9,4676.5,3.2078]
[1759761201267,0.9074,4676.9,4676.2,40.8]
[1759761201466,0.9074,4676.4,4676.3,0.38475]
[1759761201864,0.9074,4676.4,4676.2,41.18477]
[1759761202071,0.9074,4676.4,4676.3,0.38475]
[1759761202270,0.9074,4676.4,4676.3,0.60075]
[1759761202469,0.3932,4676.5,4676.3,0.60075]
[1759761202771,0.9074,4676.9,4676.6,0.38473]
[1759761202969,0.9074,4676.9,4676.8,0.38471]
[1759761203165,0.3932,4677.0,4676.8,0.60071]
[1759761203573,0.3932,4677.0,4676.7,0.216]
[1759761203772,0.9074,4676.9,4676.5,3.2078]
[1759761203965,0.3932,4677.0,4676.5,3.59254]
[1759761204164,0.3932,4677.0,4676.5,3.2078]
[1759761204165,0.9074,4676.9,4676.5,3.2078]
[1759761204373,0.9074,4676.9,4676.5,3.59254]
[1759761204560,0.3932,4677.0,4676.5,3.59254]
[1759761205071,0.3932,4677.0,4676.6,0.38473]
[1759761205272,0.3932,4677.0,4676.5,3.59254]
[1759761205774,0.9074,4676.9,4676.5,3.59254]
[1759761205960,0.3932,4677.0,4676.5,3.2078]
[1759761206160,0.3932,4676.5,4676.2,40.8]
[1759761206360,1.55976978,4676.4,4675.5,3.2078]
[1759761206571,0.9074,4676.2,4675.5,3.59262]
[1759761206871,0.9074,4676.2,4675.5,44.0078]
[1759761207068,6.34379901,4676.1,4675.5,3.2078]
[1759761207270,0.3932,4675.5,4675.0,3.2078]
[1759761207572,0.3932,4675.5,4675.4,0.38483]
[1759761208161,0.83006242,4675.5,4675.4,0.00264571]
[1759761208871,1.95346242,4675.5,4675.4,0.00264571]
[1759761210269,0.3932,4676.0,4675.9,0.38479]
[1759761210573,0.9074,4676.3,4676.2,0.38477]
[1759761210774,0.9074,4676.3,4676.2,41.18477]
[1759761210969,3.2078,4676.8,4676.4,0.38475]
[1759761211170,0.9074,4676.9,4676.7,0.38473]
[1759761211376,1.34444331,4676.8,4676.7,0.38473]
[1759761211669,0.9074,4676.8,4676.7,0.38473]